bitfinex/quotes_SOLUSD_20250522
["timestamp","ask_amount","ask_price","bid_price","bid_amount"]
[1747931357972,2.0728236,178.93,178.91,17.01537681]
[1747931358170,2.0728236,178.93,178.9,17.01537681]
[1747931358389,17.64768322,178.92,178.85,38.02]
[1747931358594,17.01537681,178.91,178.86,17.01537681]
[1747931358904,17.64768322,178.92,178.86,17.01537681]
[1747931359081,2.0728236,178.9,178.86,17.01537681]
[1747931359263,5.59002739,178.89,178.86,17.01537681]
[1747931359465,5.59002739,178.89,178.87,17.01537681]
[1747931360185,19.56509586,178.89,178.86,17.01537681]
[1747931360387,19.56509586,178.89,178.87,17.01537681]
[1747931361272,13.97506847,178.89,178.87,17.01537681]
[1747931361591,13.97506847,178.89,178.86,17.01537681]
[1747931361881,17.01537681,178.88,178.83,17.01537681]
[1747931362081,17.01537681,178.87,178.79,6.1042]
[1747931362274,17.01537681,178.87,178.82,17.12795068]
[1747931362672,17.01537681,178.85,178.82,0.11257387]
[1747931362871,17.01537681,178.85,178.79,17.01537681]
[1747931363086,17.01537681,178.84,178.79,17.01537681]
[1747931363473,19.57166023,178.83,178.79,17.01537681]
[1747931364775,5.59190292,178.83,178.82,17.01537681]
[1747931365505,5.5912776,178.85,178.82,17.01537681]
[1747931365675,5.5912776,178.85,178.84,17.01537681]
[1747931366394,5.5912776,178.85,178.83,17.01537681]
[1747931366767,5.590965,178.86,178.83,17.01537681]
[1747931368884,5.590965,178.86,178.84,17.01537681]
[1747931369473,5.590965,178.86,178.83,17.01537681]
[1747931372407,5.590965,178.86,178.8,26.0]
[1747931372609,5.590965,178.86,178.83,17.01537681]
[1747931372901,5.590965,178.86,178.8,26.0]
[1747931372902,5.590965,178.86,178.84,17.01537681]
[1747931373317,5.590965,178.86,178.85,17.01537681]
[1747931374409,5.590965,178.86,178.81,6.0635]
[1747931374704,5.590965,178.86,178.85,17.01537681]
[1747931375010,13.97607622,178.88,178.84,17.01537681]
[1747931375011,19.56641611,178.88,178.84,17.01537681]
[1747931375376,19.56641611,178.88,178.81,6.0635]
[1747931375696,19.56641611,178.88,178.84,17.01537681]
[1747931375886,36.58179292,178.88,178.83,17.01537681]
[1747931376083,36.58179292,178.88,178.81,6.0635]
[1747931376300,36.58179292,178.88,178.83,17.01537681]
[1747931376513,17.01537681,178.87,178.82,17.01537681]
[1747931376709,17.01537681,178.87,178.8,26.0]
[1747931377021,36.58484842,178.85,178.8,17.01537681]
[1747931377178,19.56947161,178.85,178.81,17.01537681]
[1747931378389,36.58484842,178.85,178.77,64.04]
[1747931378582,36.58484842,178.85,178.8,17.01537681]
[1747931379800,19.56947161,178.85,178.81,17.01537681]
[1747931380187,19.56947161,178.85,178.77,64.04]
[1747931380381,19.56947161,178.85,178.81,17.01537681]
[1747931380582,19.56947161,178.85,178.8,17.01537681]
[1747931380783,36.58484842,178.85,178.8,17.01537681]
[1747931380983,17.01537681,178.84,178.79,17.01537681]
[1747931381329,19.56947161,178.85,178.8,17.01537681]
[1747931381506,36.58484842,178.85,178.8,17.01537681]
[1747931381700,19.56947161,178.85,178.8,17.01537681]
[1747931381937,19.56947161,178.85,178.83,17.01537681]
[1747931382234,19.56947161,178.85,178.82,17.01537681]
[1747931382609,19.56947161,178.85,178.77,64.04]
[1747931382808,19.56947161,178.85,178.81,17.01537681]
[1747931383231,19.56947161,178.85,178.77,64.04]
[1747931383643,36.61034597,178.85,178.77,64.04]
[1747931383823,19.56947161,178.85,178.77,64.04]
[1747931384836,36.61034597,178.85,178.77,38.04]
[1747931385061,17.67318077,178.84,178.77,38.04]
[1747931385634,0.63230641,178.84,178.77,38.04]
[1747931385848,17.67318077,178.84,178.77,38.04]
[1747931386141,17.04087436,178.84,178.77,38.04]
[1747931386539,17.04087436,178.84,178.75,27.5863513]
[1747931386741,19.57166023,178.83,178.75,27.5863513]
[1747931388219,36.61253459,178.83,178.75,27.5863513]
[1747931388517,19.57166023,178.83,178.75,26.0]
[1747931388742,17.04087436,178.82,178.75,26.0]
[1747931389027,19.57384933,178.81,178.75,26.0]
[1747931390838,13.98132095,178.81,178.75,26.0]
[1747931393443,13.98132095,178.81,178.74,37.5]
[1747931395220,13.98132095,178.81,178.74,37.5]
[1747931397529,13.98132095,178.81,178.74,26.0]
[1747931398154,31.02219531,178.81,178.74,26.0]
[1747931398454,31.02219531,178.81,178.71,7.8071]
[1747931398638,17.04087436,178.8,178.72,26.0]
[1747931399455,19.57603891,178.79,178.72,26.0]
[1747931401651,36.61691327,178.79,178.72,26.0]
[1747931401826,19.57603891,178.79,178.72,26.0]
[1747931403438,5.59252838,178.81,178.73,26.0]
[1747931403843,5.59252838,178.81,178.74,6.6173]
[1747931405273,5.59252838,178.81,178.74,12.21185366]
[1747931405457,5.59190292,178.83,178.75,63.5]
[1747931405635,5.59033989,178.88,178.79,26.0]
[1747931406553,2.06595883,178.87,178.79,26.0]
[1747931406755,5.590965,178.86,178.81,26.0]
[1747931408658,13.9737611,178.91,178.83,26.0]
[1747931409042,5.58877773,178.93,178.85,26.0]
[1747931409551,5.58877773,178.93,178.86,26.0]
[1747931409753,2.06558724,178.92,178.87,26.0]
[1747931410059,2.06558724,178.92,178.91,26.0]
[1747931410439,5.58853404,178.94,178.86,1.5911]
[1747931410639,5.58853404,178.94,178.9,26.0]
[1747931410839,13.97116351,178.94,178.9,26.0]
[1747931411345,13.97116351,178.94,178.83,18.64964886]
[1747931411346,17.04087436,178.93,178.82,1.5911]
[1747931411553,17.04087436,178.93,178.86,26.0]
[1747931411765,17.04087436,178.92,178.83,37.5]
[1747931412560,17.04087436,178.91,178.83,63.5]
[1747931412766,19.56400223,178.9,178.83,37.5]
[1747931412956,19.56400223,178.9,178.83,63.5]
[1747931414157,36.60487659,178.9,178.83,63.5]
[1747931414371,19.56400223,178.9,178.83,63.5]
[1747931416877,13.97428731,178.9,178.83,63.5]
[1747931418080,13.97428731,178.9,178.83,37.5]
[1747931418468,31.01516167,178.9,178.83,37.5]
[1747931419488,17.04087436,178.88,178.83,37.5]
[1747931419692,17.04087436,178.89,178.83,37.5]
[1747931419988,64.55345121,178.9,178.83,37.5]
[1747931420783,17.04087436,178.89,178.83,37.5]
[1747931421093,26.0,178.86,178.76,38.96]
[1747931421296,17.04087436,178.83,178.76,38.96]
[1747931421497,19.57275471,178.82,178.76,38.96]
[1747931421790,19.57275471,178.82,178.72,32.465]
[1747931421997,36.61362907,178.82,178.72,32.465]
[1747931422178,17.67318077,178.81,178.72,6.465]
[1747931422371,0.63230641,178.81,178.71,46.9551268]
[1747931422574,17.04087436,178.8,178.72,26.0]
[1747931423194,17.04087436,178.8,178.71,38.96]
[1747931423572,19.57603891,178.79,178.71,38.96]
[1747931423996,19.57603891,178.79,178.72,26.0]
[1747931424203,19.57603891,178.79,178.74,26.0]
[1747931425587,19.57166023,178.83,178.74,26.0]
[1747931425794,64.57204921,178.83,178.74,26.0]
[1747931426884,47.53117485,178.83,178.74,26.0]
[1747931427079,47.53117485,178.83,178.72,26.0]
[1747931427080,17.04087436,178.81,178.72,26.0]
[1747931427612,19.57494406,178.8,178.72,26.0]
[1747931429799,17.04087436,178.79,178.72,26.0]
[1747931429972,17.04087436,178.78,178.71,38.96]
[1747931430182,17.04087436,178.79,178.71,38.96]
[1747931430399,17.04087436,178.78,178.71,38.96]
[1747931430902,17.67318077,178.78,178.71,38.96]
[1747931431504,37.24812483,178.8,178.71,38.96]
[1747931431708,19.57494406,178.8,178.71,38.96]
[1747931432210,5.59284116,178.8,178.74,26.0]
[1747931433272,19.57494406,178.8,178.74,26.0]
[1747931433698,13.9821029,178.8,178.74,26.0]
[1747931433892,17.67318077,178.79,178.71,38.96]
[1747931435208,0.63230641,178.79,178.71,38.96]
[1747931435780,5.59346683,178.78,178.71,38.96]
[1747931436003,5.59346683,178.78,178.71,44.55554922]
[1747931436902,5.59346683,178.78,178.71,38.96]
[1747931437908,13.9821029,178.8,178.71,44.55561319]
[1747931438399,13.9821029,178.8,178.71,38.96]
[1747931440120,19.57494406,178.8,178.71,38.96]
[1747931440733,5.59284116,178.8,178.74,26.0]
[1747931441023,5.59257063,178.81,178.74,32.4531]
[1747931441184,5.59065242,178.87,178.78,26.0]
[1747931441390,5.59065242,178.87,178.79,26.0]
[1747931441599,19.56728349,178.87,178.79,26.0]
[1747931441794,19.56728349,178.87,178.74,6.4531]
[1747931441795,155.84964886,178.86,178.74,6.4531]
[1747931442026,172.89052322,178.86,178.77,26.0]
[1747931442320,5.5912776,178.85,178.8,26.0]
[1747931443417,19.56947161,178.85,178.77,26.0]
[1747931445412,37.24265238,178.85,178.77,26.0]
[1747931446293,65.19904041,178.85,178.77,26.0]
[1747931447909,17.04087436,178.84,178.77,26.0]
[1747931448116,0.63230641,178.83,178.77,26.0]
[1747931448415,19.57275471,178.82,178.77,26.0]
[1747931448825,19.57275471,178.82,178.74,38.98]
[1747931450213,19.57494406,178.8,178.74,38.98]
[1747931450633,173.81581842,178.8,178.69,6.235]
[1747931450812,35.69052322,178.78,178.68,39.65377784]
[1747931450991,35.69052322,178.78,178.68,65.65377784]
[1747931451193,26.63230641,178.79,178.68,39.65377784]
[1747931451425,26.63230641,178.79,178.68,65.65377784]
[1747931451723,26.0,178.77,178.68,39.65377784]
[1747931451923,26.0,178.77,178.68,39.56]
[1747931452132,18.64964886,178.78,178.68,39.56]
[1747931452641,19.578229,178.77,178.68,39.56]
[1747931453401,163.2,178.76,178.68,39.56]
[1747931453619,18.57997436,178.75,178.68,39.56]
[1747931453925,1.5391,178.75,178.64,209.14]
[1747931454506,1.5391,178.75,178.63,39.56]
[1747931454507,19.58589815,178.7,178.63,39.56]
[1747931455146,20.21820456,178.7,178.59,7.9951268]
[1747931455303,17.04087436,178.69,178.59,7.9951268]
[1747931456139,26.0,178.68,178.59,7.9951268]
[1747931456300,26.0,178.67,178.59,7.9951268]
[1747931456531,36.63115757,178.66,178.53,210.8213]
[1747931456730,17.04087436,178.65,178.54,39.56]
[1747931457033,36.63115757,178.66,178.54,44.05807924]
[1747931457229,64.61727645,178.66,178.54,39.56]
[1747931457656,74.90755168,178.66,178.54,39.56]
[1747931457962,74.90755168,178.66,178.61,27.33112993]
[1747931457963,33.54,178.65,178.61,27.33112993]
[1747931458128,34.17230641,178.65,178.54,39.56]
[1747931458461,27.33112993,178.63,178.52,6.5521]
[1747931458634,20.22697665,178.62,178.58,27.33112993]
[1747931458839,20.22697665,178.62,178.52,32.5521]
[1747931459040,20.22697665,178.62,178.58,27.33112993]
[1747931459857,19.59467024,178.62,178.59,27.33112993]
[1747931460230,19.59467024,178.62,178.52,32.5521]
[1747931460231,19.59467024,178.62,178.6,27.33112993]
[1747931460642,5.5981638,178.63,178.61,27.33112993]
[1747931460836,5.5981638,178.63,178.62,27.33112993]
[1747931461036,5.5981638,178.63,178.52,6.5521]
[1747931461037,19.5935733,178.63,178.52,6.5521]
[1747931461261,18.64964886,178.62,178.57,27.33112993]
[1747931461557,45.98077879,178.6,178.55,27.33112993]
[1747931461729,0.63230641,178.59,178.55,27.33112993]
[1747931461934,0.63230641,178.59,178.56,27.33112993]
[1747931462364,0.63230641,178.59,178.55,27.33112993]
[1747931462665,53.33112993,178.57,178.44,9.6125268]
[1747931462856,27.33112993,178.53,178.48,27.33112993]
[1747931463057,27.33112993,178.53,178.44,7.9951268]
[1747931463058,46.6130852,178.52,178.47,27.33112993]
[1747931463247,26.63230641,178.52,178.49,27.33112993]
[1747931463759,26.63230641,178.52,178.48,27.33112993]
[1747931463956,26.63230641,178.52,178.47,27.33112993]
[1747931464262,18.64964886,178.49,178.42,0.06234402]
[1747931464464,27.33112993,178.45,178.42,0.06234402]
[1747931464637,5.60412463,178.44,178.42,0.06234402]
[1747931465146,24.25377349,178.44,178.42,0.06234402]
[1747931465361,5.60412463,178.44,178.42,27.39347395]
[1747931466082,5.60412463,178.44,178.43,27.33112993]
[1747931466437,5.60286866,178.48,178.43,27.33112993]
[1747931466737,5.60286866,178.48,178.47,27.33112993]
[1747931466938,5.60286866,178.48,178.42,39.66234402]
[1747931467463,5.60286866,178.48,178.47,27.33112993]
[1747931467844,5.60286866,178.48,178.42,39.66234402]
[1747931468039,19.61004033,178.48,178.42,39.66234402]
[1747931468355,19.61004033,178.48,178.45,27.33112993]
[1747931468761,19.61004033,178.48,178.44,27.33112993]
[1747931469339,5.59941766,178.59,178.48,26.0]
[1747931469541,5.59941766,178.59,178.58,27.33112993]
[1747931469837,24.34658043,178.63,178.58,27.33112993]
[1747931470054,24.34658043,178.63,178.6,27.33112993]
[1747931470437,24.34658043,178.63,178.61,27.33112993]
[1747931470672,5.59847721,178.62,178.61,27.33112993]
[1747931471282,5.59847721,178.62,178.61,7.89613006]
[1747931471638,19.59467024,178.62,178.59,27.33112993]
[1747931471850,6.2255,178.61,178.49,26.0]
[1747931472094,18.64964886,178.55,178.42,0.06234402]
[1747931472374,26.0,178.47,178.42,0.06234402]
[1747931472545,44.64964886,178.47,178.46,27.33112993]
[1747931472740,24.25283146,178.47,178.46,27.33112993]
[1747931472965,24.25283146,178.47,178.45,27.33112993]
[1747931473168,5.6031826,178.47,178.46,27.33112993]
[1747931473350,5.6031826,178.47,178.42,0.06234402]
[1747931474452,19.61113911,178.47,178.42,0.06234402]
[1747931474768,26.0,178.46,178.4,6.2564]
[1747931474973,5.6031826,178.47,178.4,6.2564]
[1747931475556,5.60224089,178.5,178.4,6.2564]
[1747931475856,19.60784313,178.5,178.4,6.2564]
[1747931478443,61.12132046,178.5,178.4,6.2564]
[1747931478771,45.61004033,178.48,178.4,6.2564]
[1747931482056,19.61004033,178.48,178.4,6.2564]
[1747931482360,45.61004033,178.48,178.4,6.2564]
[1747931483256,5.60286866,178.48,178.4,6.2564]
[1747931483859,5.60286866,178.48,178.4,11.8617469]
[1747931484249,5.60286866,178.48,178.4,6.2564]
[1747931484853,19.61004033,178.48,178.4,6.2564]
[1747931485078,68.14578374,178.47,178.38,46.94]
[1747931485378,19.61223803,178.46,178.37,46.94]
[1747931487574,89.76749923,178.49,178.37,46.94]
[1747931488166,48.2540219,178.49,178.35,32.4996]
[1747931488361,89.13519282,178.49,178.36,80.54]
[1747931488852,89.76749923,178.49,178.36,80.54]
[1747931489185,89.76749923,178.49,178.37,33.6]
[1747931490576,89.76749923,178.49,178.38,26.0]
[1747931491254,48.2540219,178.49,178.38,26.0]
[1747931491455,89.76749923,178.49,178.38,26.0]
[1747931492282,48.2540219,178.49,178.38,26.0]
[1747931492578,89.76749923,178.49,178.39,26.0]
[1747931492758,89.76749923,178.49,178.37,59.6]
[1747931492959,41.51347733,178.48,178.37,59.6]
[1747931493369,89.76749923,178.49,178.37,59.6]
[1747931493575,89.76749923,178.49,178.37,26.0]
[1747931493878,75.63418797,178.49,178.37,59.6]
[1747931495377,2.04103236,178.48,178.37,59.6]
[1747931495580,19.61113911,178.47,178.37,59.6]
[1747931497580,14.00795651,178.47,178.37,59.6]
[1747931497881,41.38812258,178.47,178.37,59.6]
[1747931498055,46.02981493,178.46,178.36,46.94]
[1747931498460,2.04739261,178.45,178.36,46.94]
[1747931499382,2.04739261,178.46,178.36,46.94]
[1747931499576,19.61333706,178.45,178.36,46.94]
[1747931499964,20.24564347,178.45,178.36,46.94]
[1747931500568,48.26469642,178.45,178.36,46.94]
[1747931500767,2.04992192,178.44,178.36,46.94]
[1747931501280,48.26469642,178.45,178.36,46.94]
[1747931501281,2.04992192,178.43,178.36,46.94]
[1747931501791,19.6166349,178.42,178.36,46.94]
[1747931501970,21.66655682,178.42,178.36,46.94]
[1747931502880,2.04992192,178.41,178.36,46.94]
[1747931503577,2.04992192,178.4,178.36,46.94]
[1747931503983,5.60569538,178.39,178.36,46.94]
[1747931504790,5.60569538,178.39,178.32,31.60771517]
[1747931504978,5.60569538,178.39,178.32,26.0]
[1747931505379,2.06179755,178.38,178.32,26.0]
[1747931505697,2.06179755,178.38,178.32,73.44]
[1747931505862,5.60632393,178.37,178.32,73.44]
[1747931507988,14.01383628,178.4,178.32,73.44]
[1747931508495,2.05974724,178.39,178.32,73.44]
[1747931509396,5.60475283,178.42,178.32,79.04785402]
[1747931510199,5.60381059,178.45,178.36,26.0]
[1747931510398,5.60381059,178.45,178.36,59.6]
[1747931510594,19.61333706,178.45,178.36,59.6]
[1747931511077,2.06127492,178.44,178.36,59.6]
[1747931511677,19.61333706,178.45,178.36,59.6]
[1747931511998,5.6031826,178.47,178.37,5.60632393]
[1747931512198,5.6031826,178.47,178.4,26.0]
[1747931512774,5.6031826,178.47,178.42,26.0]
[1747931513072,5.60224089,178.5,178.42,25.96816715]
[1747931513602,5.60224089,178.5,178.41,33.6]
[1747931514180,19.60592165,178.52,178.42,5.60475283]
[1747931514893,19.60592165,178.52,178.41,39.20501841]
[1747931515080,19.60592165,178.52,178.44,26.0]
[1747931515272,2.0618557,178.51,178.44,26.0]
[1747931515672,5.60224089,178.5,178.44,26.0]
[1747931516197,5.60224089,178.5,178.44,31.60410892]
[1747931516784,5.60224089,178.5,178.44,26.0]
[1747931517581,19.60784313,178.5,178.44,26.0]
[1747931517784,14.00560224,178.5,178.43,26.0]
[1747931519089,14.63790865,178.5,178.43,26.0]
[1747931519392,42.01807472,178.5,178.42,26.0]
[1747931519786,2.06099948,178.49,178.42,26.0]
[1747931520003,2.06099948,178.49,178.39,73.44]
[1747931520599,29.44116555,178.49,178.39,73.44]
[1747931520800,27.38016607,178.47,178.39,47.44]
[1747931521290,28.01247248,178.48,178.39,47.44]
[1747931521483,6.628,178.49,178.39,47.44]
[1747931521685,27.38016607,178.47,178.39,47.44]
[1747931521911,20.24454444,178.46,178.39,47.44]
[1747931522310,75.64219341,178.46,178.39,47.44]
[1747931522686,48.26202734,178.46,178.39,47.44]
[1747931522885,75.64219341,178.46,178.39,47.44]
[1747931523297,48.26202734,178.46,178.39,47.44]
[1747931524802,19.61223803,178.46,178.39,47.44]
[1747931525912,14.00874145,178.46,178.39,47.44]
[1747931529326,14.00874145,178.46,178.37,73.44]
[1747931530000,27.38016607,178.43,178.35,6.1009]
[1747931530321,27.38016607,178.43,178.35,10.55688532]
[1747931530499,28.01247248,178.44,178.35,30.45598532]
[1747931531206,28.01247248,178.44,178.32,48.9524]
[1747931531207,29.44198622,178.43,178.34,4.51719759]
[1747931531399,29.44198622,178.43,178.32,48.9524]
[1747931531593,2.06182015,178.43,178.32,48.9524]
[1747931531795,29.44198622,178.43,178.33,26.0]
[1747931532129,19.61773443,178.41,178.33,26.0]
[1747931532619,5.60506698,178.41,178.33,31.60755]
[1747931532930,5.60443871,178.43,178.33,31.60755]
[1747931534312,41.38998253,178.45,178.35,26.0]
[1747931534505,0.63230641,178.44,178.35,73.18]
[1747931534912,28.01247248,178.44,178.35,73.18]
[1747931535725,0.63230641,178.44,178.35,26.0]
[1747931535895,28.01247248,178.44,178.35,26.0]
[1747931536202,19.61553549,178.43,178.35,26.0]
[1747931537015,75.01789513,178.43,178.33,73.18]
[1747931537203,6.2579,178.41,178.28,48.8348]
[1747931537395,6.2579,178.41,178.28,47.18]
[1747931537396,27.38016607,178.38,178.28,47.18]
[1747931537597,18.64964886,178.39,178.28,47.18]
[1747931537821,27.38016607,178.35,178.27,4.38478655]
[1747931538127,18.64964886,178.27,178.26,7.9951268]
[1747931538328,85.23928371,178.27,178.26,7.9951268]
[1747931538535,57.85911764,178.27,178.26,7.9951268]
[1747931538713,85.23928371,178.27,178.26,7.9951268]
[1747931539029,5.60946878,178.27,178.26,7.9951268]
[1747931539212,5.60821042,178.31,178.26,7.9951268]
[1747931539421,5.60821042,178.31,178.22,73.2]
[1747931539733,5.60695262,178.35,178.26,26.0]
[1747931540026,5.60695262,178.35,178.28,26.0]
[1747931540508,18.00234239,178.36,178.28,26.0]
[1747931540509,9.5922078,178.36,178.28,31.60912504]
[1747931541431,9.5922078,178.36,178.29,47.2]
[1747931541732,5.60666948,178.36,178.29,47.2]
[1747931542137,19.62326512,178.36,178.29,47.2]
[1747931542340,14.01659564,178.36,178.29,47.2]
[1747931543710,0.5,178.35,178.29,47.2]
[1747931544201,14.01659564,178.36,178.29,47.2]
[1747931544404,19.61773443,178.41,178.29,47.2]
[1747931544626,18.64964886,178.4,178.29,47.2]
[1747931544804,46.66212134,178.4,178.29,47.2]
[1747931545440,19.28195527,178.4,178.29,47.2]
[1747931545601,2.05780633,178.39,178.29,47.2]
[1747931545801,19.62103374,178.38,178.29,47.2]
[1747931546351,0.63230641,178.37,178.29,47.2]
[1747931546849,19.62103374,178.38,178.29,47.2]
[1747931549532,27.38016607,178.37,178.29,47.2]
[1747931549834,47.63350622,178.38,178.29,47.2]
[1747931550140,20.25334015,178.38,178.29,47.2]
[1747931550530,47.63350622,178.38,178.29,47.2]
[1747931550841,75.66355443,178.38,178.29,47.2]
[1747931551017,18.64964886,178.37,178.29,47.2]
[1747931551222,27.38016607,178.35,178.29,47.2]
[1747931551532,28.01247248,178.36,178.29,47.2]
[1747931552028,0.63230641,178.36,178.29,47.2]
[1747931552239,19.62433417,178.35,178.29,47.2]
[1747931554320,14.01738155,178.35,178.29,47.2]
[1747931554522,5.60663825,178.36,178.29,47.2]
[1747931555210,19.62323389,178.36,178.29,47.2]
[1747931555611,19.62323389,178.36,178.29,80.82]
[1747931555829,27.38016607,178.34,178.18,65.84964886]
[1747931556034,1.6234,178.35,178.21,26.0]
[1747931556237,19.62543455,178.34,178.25,26.0]
[1747931556424,19.62543455,178.34,178.22,33.62]
[1747931556425,0.60037295,178.33,178.22,33.62]
[1747931556626,0.60037295,178.33,178.25,26.0]
[1747931556829,47.00560062,178.34,178.25,26.0]
[1747931557225,19.62543455,178.34,178.25,26.0]
[1747931557628,27.98053902,178.33,178.22,33.62]
[1747931558138,27.98053902,178.33,178.23,26.0]
[1747931558362,0.60037295,178.33,178.24,26.0]
[1747931558715,27.98053902,178.33,178.18,71.46171591]
[1747931558932,27.98053902,178.33,178.19,33.62]
[1747931559135,27.98053902,178.33,178.22,26.0]
[1747931559334,27.98053902,178.33,178.24,26.0]
[1747931560340,19.6276357,178.32,178.24,26.0]
[1747931560543,19.6276357,178.32,178.22,26.0]
[1747931560727,19.6276357,178.32,178.24,26.0]
[1747931561121,75.04728135,178.32,178.16,25.00894886]
[1747931561321,212.24728135,178.32,178.2,26.0]
[1747931561542,137.80037295,178.31,178.2,26.0]
[1747931561746,137.2,178.31,178.2,26.0]
[1747931561922,137.2,178.31,178.21,47.22]
[1747931562242,19.63093835,178.29,178.2,73.22]
[1747931562728,19.63093835,178.29,178.2,47.22]
[1747931563656,19.63093835,178.29,178.23,26.0]
[1747931563952,5.60883953,178.29,178.23,26.0]
[1747931564333,19.63025128,178.3,178.23,26.0]
[1747931565036,19.63025128,178.3,178.24,26.0]
[1747931566440,19.63025128,178.3,178.23,26.0]
[1747931568663,19.63025128,178.3,178.21,26.0]
[1747931569025,47.6107903,178.3,178.21,73.82]
[1747931569731,20.23062423,178.3,178.21,73.82]
[1747931570753,19.63025128,178.3,178.21,73.82]
[1747931571050,5.60852495,178.3,178.21,79.43122418]
[1747931571229,142.80826616,178.31,178.22,1.6614]
[1747931571425,5.60826616,178.31,178.22,1.6614]
[1747931571730,5.60826616,178.31,178.23,6.1251]
[1747931571934,5.60826616,178.31,178.24,59.62]
[1747931572853,19.62580593,178.34,178.24,59.62]
[1747931573044,19.62580593,178.34,178.24,65.2303384]
[1747931573553,5.60726701,178.34,178.27,26.0]
[1747931573735,5.60726701,178.34,178.28,47.82]
[1747931574253,19.62543455,178.34,178.28,47.82]
[1747931575140,19.62213376,178.37,178.28,47.82]
[1747931577255,14.01580983,178.37,178.28,47.82]
[1747931578654,14.01580983,178.37,178.28,53.42909497]
[1747931579549,14.01580983,178.37,178.28,47.82]
[1747931579949,14.01580983,178.37,178.28,53.42914383]
[1747931580291,5.60600964,178.38,178.31,26.0]
[1747931580445,5.60600964,178.38,178.32,26.0]
[1747931581034,19.62103374,178.38,178.32,26.0]
[1747931581437,19.62103374,178.38,178.29,59.62]
[1747931581937,14.0150241,178.38,178.29,59.62]
[1747931582340,14.0150241,178.38,178.29,65.22878231]
[1747931583345,5.60569538,178.39,178.33,26.0]
[1747931583747,14.01320331,178.41,178.33,26.0]
[1747931584662,5.60412463,178.44,178.37,26.0]
[1747931584964,5.60412463,178.44,178.37,73.8]
[1747931586068,19.61113911,178.47,178.37,73.8]
[1747931586270,156.81113911,178.47,178.37,73.8]
[1747931586766,212.24220978,178.47,178.37,73.8]
[1747931587272,184.82705214,178.47,178.37,73.8]
[1747931587572,212.24220978,178.47,178.37,73.8]
[1747931588049,156.81113911,178.47,178.37,73.8]
[1747931590573,212.24220978,178.47,178.37,73.8]
[1747931592354,28.01553059,178.46,178.37,73.8]
[1747931592557,27.41515764,178.44,178.37,47.8]
[1747931593483,28.93805764,178.42,178.37,47.8]
[1747931593695,17.13051561,178.38,178.28,45.92]
[1747931593863,1.6167,178.39,178.28,45.92]
[1747931594052,17.13051561,178.33,178.28,45.92]
[1747931594251,17.13051561,178.33,178.26,7.9951268]
[1747931594252,17.13051561,178.31,178.26,7.9951268]
[1747931594556,33.6,178.33,178.26,7.9951268]
[1747931594557,36.76035295,178.3,178.26,7.9951268]
[1747931594891,38.37705295,178.3,178.26,7.9951268]
[1747931595090,21.24653734,178.3,178.26,7.9951268]
[1747931595315,38.37705295,178.3,178.21,255.72]
[1747931595653,38.37705295,178.3,178.21,45.92]
[1747931595654,17.13051561,178.28,178.21,45.92]
[1747931595978,17.13051561,178.27,178.21,45.92]
[1747931596191,35.78016447,178.24,178.09,8.73946594]
[1747931596352,17.13051561,178.18,178.09,8.73946594]
[1747931596553,19.64085296,178.2,178.09,8.73946594]
[1747931596554,33.62,178.17,178.09,8.73946594]
[1747931596953,17.13051561,178.16,178.05,26.0]
[1747931597170,17.73088856,178.16,178.02,6.1054]
[1747931597374,17.73088856,178.16,178.02,11.72273316]
[1747931597569,0.60037295,178.16,178.01,2.92693842]
[1747931597772,27.49213539,178.13,178.0,45.92]
[1747931597962,33.62,178.12,178.03,26.0]
[1747931598155,46.16984886,178.18,178.03,24.5]
[1747931598156,33.62,178.14,178.03,24.5]
[1747931598358,5.61324726,178.15,178.03,30.11687262]
[1747931598576,5.61324726,178.15,178.04,33.62]
[1747931598780,19.64636541,178.15,178.04,33.62]
[1747931599286,19.64636541,178.15,178.03,24.5]
[1747931599657,19.64636541,178.15,178.03,30.11685093]
[1747931600679,5.61324726,178.15,178.07,26.0]